fUSD/lending_fUSD_20250225
["ID","MTS","AMOUNT","RATE_DAILY","PERIOD"]
[354388607,1740468754256,-500.0,0.00056986,120]
[354388608,1740468754266,-522.17,0.00056986,120]
[354388609,1740468754276,-500.0,0.00056986,120]
[354388610,1740468754286,-857.98,0.00056986,120]
[354388611,1740468754296,-3140.0,0.00056986,120]
[354388612,1740468754306,-3227.53,0.00056986,120]
[354388613,1740468754317,-500.0,0.00056986,120]
[354388614,1740468754330,-500.0,0.00056986,120]
[354388615,1740468754340,-775.19,0.00056986,120]
[354388616,1740468754351,-500.0,0.00056986,120]
[354388617,1740468754361,-872.89,0.00056986,120]
[354388618,1740468754372,-2538.08,0.00056986,120]
[354388619,1740468754383,-2940.18,0.00056986,120]
[354388620,1740468754393,-3583.88,0.00056986,120]
[354388621,1740468754403,-2559.65,0.00056986,120]
[354388622,1740468754413,-251.94141837,0.00056986,120]
[354388623,1740468754423,-1118.81,0.00056986,120]
[354388624,1740468754432,-688.16,0.00056986,120]
[354388625,1740468754442,-500.0,0.00056986,120]
[354388626,1740468754453,-3329.23,0.00056986,120]
[354388627,1740468754463,-1907.44,0.00056986,120]
[354388628,1740468754473,-568.38,0.00056986,120]
[354388629,1740468754483,-3487.12,0.00056986,120]
[354388630,1740468754493,-2138.38,0.00056986,120]
[354388631,1740468754503,-1469.89,0.00056986,120]
[354388632,1740468754513,-880.12,0.00056986,120]
[354388633,1740468754523,-500.0,0.00056986,120]
[354388634,1740468754532,-1941.03,0.00056986,120]
[354388635,1740468754543,-998.34,0.00056986,120]
[354388636,1740468754552,-1969.46,0.00056986,120]
[354388637,1740468754562,-3496.1,0.00056986,120]
[354388638,1740468754572,-616.84661006,0.00056986,120]
[354388639,1740468754584,-2020.04,0.00056986,120]
[354388640,1740468754594,-1704.77,0.00056986,120]
[354388641,1740468754604,-500.0,0.00056986,120]
[354388642,1740468754614,-3000.0,0.00056986,120]
[354388643,1740468754624,-1814.1,0.00056986,120]
[354388644,1740468754634,-3162.2,0.00056986,120]
[354388645,1740468754644,-561.29,0.00056986,120]
[354388646,1740468754654,-558.43,0.00056986,120]
[354388647,1740468754664,-500.0,0.00056986,2]
[354388648,1740468754674,-500.0,0.00056986,120]
[354388649,1740468754684,-4214.34,0.00056986,120]
[354388650,1740468754695,-1793.36,0.00056986,120]
[354388651,1740468754705,-1107.87,0.00056986,120]
[354388652,1740468754715,-1453.67,0.00056986,30]
[354388653,1740468754725,-1291.79,0.00056986,120]
[354388654,1740468754735,-2203.33,0.00056986,120]
[354388655,1740468754745,-500.0,0.00056986,120]
[354388656,1740468754755,-2186.37,0.00056986,120]
[354388657,1740468754764,-2099.71,0.00056986,120]
[354388658,1740468754774,-1541.65,0.00056986,120]
[354388659,1740468754784,-500.0,0.00056986,2]
[354388660,1740468754794,-500.0,0.00056986,120]
[354388661,1740468754803,-491.95499592,0.00056986,120]
[354388662,1740468754813,-500.0,0.00056986,120]
[354388663,1740468754823,-2864.64,0.00056986,120]
[354388664,1740468754835,-500.0,0.00056986,120]
[354388665,1740468754846,-500.0,0.00056986,120]
[354388666,1740468754855,-1803.36,0.00056986,120]
[354388667,1740468754865,-507.3383937,0.00056986,120]
[354388668,1740468754875,-1506.59,0.00056986,120]
[354388669,1740468754884,-1568.57,0.00056986,120]
[354388670,1740468754894,-980.59,0.00056986,120]
[354388671,1740468754903,-1792.49,0.00056986,120]
[354388672,1740468754913,-1620.72,0.00056986,120]
[354388673,1740468754924,-500.0,0.00056986,120]
[354388674,1740468754933,-514.11592351,0.00056986,120]
[354388675,1740468754943,-849.91,0.00056986,120]
[354388676,1740468754952,-659.49,0.00056986,120]
[354388677,1740468754962,-500.0,0.00056986,120]
[354388678,1740468754972,-3340.49,0.00056986,120]
[354388679,1740468754981,-668.51,0.00056986,120]
[354388680,1740468754991,-500.0,0.00056986,120]
[354388681,1740468755000,-150.979023,0.00056986,120]
[354388682,1740468755010,-680.52,0.00056986,120]
[354388683,1740468755020,-500.0,0.00056986,120]
[354388684,1740468755030,-1680.11,0.00056986,120]
[354388685,1740468755040,-500.0,0.00056986,120]
[354388686,1740468755051,-500.0,0.00056986,120]
[354388687,1740468755061,-2006.24,0.00056986,120]
[354388688,1740468755071,-2470.99,0.00056986,120]
[354388689,1740468755082,-1713.5,0.00056986,120]
[354388690,1740468755099,-722.09430344,0.00057,30]
[354388691,1740468755108,-10000.0,0.00057,30]
[354388692,1740468755118,-563.24,0.0005726,120]
[354388693,1740468755128,-580.45,0.0005726,120]
[354388694,1740468755139,-167.182594,0.0005726,120]
[354388695,1740468755149,-406.014874,0.0005726,120]
[354388696,1740468755159,-166.734294,0.0005726,120]
[354388697,1740468755171,-554.357489,0.0005726,120]
[354388698,1740468755181,-500.0,0.0005726,120]
[354388699,1740468755191,-500.0,0.0005726,120]
[354388700,1740468755201,-566.73375565,0.0005726,120]
[354388701,1740468755211,-500.0,0.0005726,120]
[354388702,1740468755221,-500.0,0.0005726,120]
[354388703,1740468755231,-521.68,0.0005726,120]
[354388704,1740468755242,-500.0,0.0005726,120]
[354388705,1740468755252,-699.56,0.0005726,120]
[354388706,1740468755262,-500.0,0.0005726,120]
[354388707,1740468755271,-500.0,0.0005726,120]
[354388708,1740468755281,-500.0,0.0005726,120]
[354388709,1740468755290,-500.0,0.0005726,120]
[354388710,1740468755300,-500.0,0.0005726,120]
[354388711,1740468755310,-500.0,0.0005726,120]
[354388712,1740468755319,-687.3,0.0005726,120]
[354388713,1740468755330,-500.0,0.0005726,120]
[354388714,1740468755342,-1291.42,0.0005726,120]
[354388715,1740468755353,-500.0,0.0005726,120]
[354388716,1740468755363,-500.0,0.0005726,120]
[354388717,1740468755373,-537.75855571,0.0005726,120]
[354388718,1740468755383,-500.0,0.0005726,120]
[354388719,1740468755393,-500.0,0.0005726,120]
[354388720,1740468755403,-850.45,0.0005726,120]
[354388721,1740468755413,-500.0,0.0005726,120]
[354388722,1740468755423,-500.0,0.0005726,120]
[354388723,1740468755433,-836.92,0.0005726,120]
[354388724,1740468755443,-925.53,0.0005726,120]
[354388725,1740468755454,-177.32165695,0.0005726,120]
[354388726,1740468755464,-525.48,0.0005726,120]
[354388727,1740468755474,-500.0,0.0005726,120]
[354388728,1740468755484,-1017.7,0.0005726,120]
[354388729,1740468755494,-620.4,0.0005726,120]
[354388730,1740468755504,-500.0,0.0005726,120]
[354388731,1740468755514,-637.38,0.0005726,120]
[354388732,1740468755524,-500.0,0.0005726,120]
[354388733,1740468755534,-500.0,0.0005726,120]
[354388734,1740468755545,-822.2,0.0005726,120]
[354388735,1740468755555,-500.0,0.0005726,120]
[354388736,1740468755566,-500.0,0.0005726,120]
[354388737,1740468755576,-500.0,0.0005726,120]
[354388738,1740468755590,-500.0,0.0005726,120]
[354388739,1740468755600,-171.6586129,0.0005726,120]
[354388740,1740468755609,-543.16,0.0005726,120]
[354388741,1740468755620,-500.0,0.0005726,120]
[354388742,1740468755630,-1571.07,0.0005726,120]
[354388743,1740468755640,-848.24,0.0005726,120]
[354388744,1740468755650,-943.15,0.0005726,120]
[354388745,1740468755660,-500.0,0.0005726,120]
[354388746,1740468755670,-1168.63,0.0005726,120]
[354388747,1740468755680,-500.0,0.0005726,120]
[354388748,1740468755690,-517.51,0.0005726,120]
[354388749,1740468755700,-951.32,0.0005726,120]
[354388750,1740468755710,-2000.0,0.0005726,30]
[354388751,1740468755720,-500.0,0.0005726,120]
[354388752,1740468755729,-500.0,0.0005726,120]
[354388753,1740468755739,-500.0,0.0005726,120]
[354388754,1740468755748,-500.0,0.0005726,120]
[354388755,1740468755758,-500.0,0.0005726,120]
[354388756,1740468755767,-500.0,0.0005726,120]
[354388757,1740468755776,-777.26,0.0005726,120]
[354388758,1740468755786,-500.0,0.0005726,120]
[354388759,1740468755795,-500.0,0.0005726,120]
[354388760,1740468755805,-560.94,0.0005726,120]
[354388761,1740468755814,-500.0,0.0005726,120]
[354388762,1740468755823,-500.0,0.0005726,120]
[354388763,1740468755835,-296.65784757,0.0005726,120]
[354388764,1740468755845,-500.0,0.0005726,120]
[354388765,1740468755855,-404.43,0.0005726,7]
[354388766,1740468755865,-500.0,0.0005726,120]
[354388767,1740468755875,-1128.12,0.0005726,120]
[354388768,1740468755884,-500.0,0.0005726,120]
[354388769,1740468755894,-500.0,0.0005726,120]
[354388770,1740468755904,-610.79,0.0005726,120]
[354388771,1740468755914,-630.83,0.0005726,120]
[354388772,1740468755924,-500.0,0.0005726,120]
[354388773,1740468755934,-500.0,0.0005726,120]
[354388774,1740468755944,-500.0,0.0005726,120]
[354388775,1740468755955,-500.0,0.0005726,120]
[354388776,1740468755965,-500.0,0.0005726,120]
[354388777,1740468755976,-641.8,0.0005726,120]
[354388778,1740468755986,-500.0,0.0005726,120]
[354388779,1740468755995,-1736.97,0.0005726,120]
[354388780,1740468756005,-500.0,0.0005726,120]
[354388781,1740468756015,-500.0,0.0005726,120]
[354388782,1740468756025,-551.92,0.0005726,120]
[354388783,1740468756035,-500.0,0.0005726,120]
[354388784,1740468756045,-829.97,0.0005726,120]
[354388785,1740468756056,-1884.67,0.0005726,120]
[354388786,1740468756065,-1959.02,0.0005726,120]
[354388787,1740468756075,-687.65,0.0005726,120]
[354388788,1740468756089,-1049.16,0.0005726,120]
[354388789,1740468756099,-500.0,0.0005726,120]
[354388790,1740468756109,-500.0,0.0005726,120]
[354388791,1740468756119,-500.0,0.0005726,120]
[354388792,1740468756131,-500.0,0.0005726,120]
[354388793,1740468756140,-500.0,0.0005726,120]
[354388794,1740468756150,-500.0,0.0005726,120]
[354388795,1740468756162,-910.65,0.0005726,120]
[354388796,1740468756173,-500.0,0.0005726,120]
[354388797,1740468756183,-500.0,0.0005726,120]
[354388798,1740468756194,-500.0,0.0005726,120]
[354388799,1740468756204,-500.0,0.0005726,120]
[354388800,1740468756214,-1220.8,0.0005726,120]
[354388801,1740468756225,-500.0,0.0005726,120]
[354388802,1740468756235,-500.0,0.0005726,120]
[354388803,1740468756246,-500.0,0.0005726,120]
[354388804,1740468756256,-195.19435508,0.0005726,120]
[354388805,1740468756266,-500.0,0.0005726,120]
[354388806,1740468756276,-522.31,0.0005726,120]
[354388807,1740468756287,-1188.98,0.0005726,120]
[354388808,1740468756297,-526.28,0.0005726,120]
[354388809,1740468756306,-1040.34,0.0005726,120]
[354388810,1740468756317,-500.0,0.0005726,120]
[354388811,1740468756327,-724.24,0.0005726,120]
[354388812,1740468756342,-500.0,0.0005726,120]
[354388813,1740468756352,-516.66121318,0.0005726,120]
[354388814,1740468756363,-1422.51,0.0005726,120]
[354388815,1740468756373,-1615.65,0.0005726,120]
[354388816,1740468756384,-500.0,0.0005726,120]
[354388817,1740468756394,-992.42,0.0005726,20]
[354388818,1740468756404,-901.44,0.0005726,120]
[354388819,1740468756414,-816.88,0.0005726,120]
[354388820,1740468756424,-500.0,0.0005726,120]
[354388821,1740468756435,-500.0,0.0005726,120]
[354388822,1740468756444,-500.0,0.0005726,120]
[354388823,1740468756454,-671.92,0.0005726,120]
[354388824,1740468756465,-955.28,0.0005726,120]
[354388825,1740468756475,-500.0,0.0005726,120]
[354388826,1740468756486,-1525.72,0.0005726,120]
[354388827,1740468756496,-500.0,0.0005726,40]
[354388828,1740468756507,-500.0,0.0005726,120]
[354388829,1740468756517,-1437.76,0.0005726,120]
[354388830,1740468756528,-156.37424251,0.0005726,120]
[354388831,1740468756538,-1132.0,0.0005726,120]
[354388832,1740468756548,-1768.38,0.0005726,120]
[354388833,1740468756559,-872.14,0.0005726,120]
[354388834,1740468756570,-1405.94,0.0005726,120]
[354388835,1740468756580,-415.9009544,0.0005726,120]
[354388836,1740468756593,-500.0,0.0005726,120]
[354388837,1740468756604,-523.55828707,0.0005726,120]
[354388838,1740468756614,-745.77,0.0005726,120]
[354388839,1740468756624,-1000.0,0.0005726,120]
[354388840,1740468756634,-500.0,0.0005726,120]
[354388841,1740468756645,-820.25,0.0005726,120]
[354388842,1740468756655,-500.0,0.0005726,120]
[354388843,1740468756665,-778.18,0.0005726,120]
[354388844,1740468756675,-500.0,0.0005726,120]
[354388845,1740468756684,-618.03,0.0005726,120]
[354388846,1740468756694,-538.57,0.0005726,120]
[354388847,1740468756704,-813.45,0.0005726,120]
[354388848,1740468756714,-659.87,0.0005726,120]
[354388849,1740468756725,-542.24,0.0005726,120]
[354388850,1740468756735,-1379.17,0.0005726,120]
[354388851,1740468756745,-1790.29,0.0005726,120]
[354388852,1740468756756,-587.89669207,0.0005726,120]
[354388853,1740468756767,-817.76,0.0005726,120]
[354388854,1740468756777,-500.0,0.0005726,120]
[354388855,1740468756787,-1159.57,0.0005726,120]
[354388856,1740468756798,-500.0,0.0005726,120]
[354388857,1740468756808,-500.0,0.0005726,120]
[354388858,1740468756817,-500.0,0.0005726,120]
[354388859,1740468756827,-500.0,0.0005726,120]
[354388860,1740468756839,-672.91,0.0005726,120]
[354388861,1740468756849,-1035.42,0.0005726,120]
[354388862,1740468756860,-1067.5,0.0005726,120]
[354388863,1740468756870,-500.0,0.0005726,120]
[354388864,1740468756880,-911.5,0.0005726,120]
[354388865,1740468756890,-782.71,0.0005726,120]
[354388866,1740468756900,-692.81,0.0005726,120]
[354388867,1740468756910,-500.0,0.0005726,120]
[354388868,1740468756920,-1417.28,0.0005726,120]
[354388869,1740468756930,-4827.95,0.0005726,120]
[354388870,1740468756940,-907.1,0.0005726,120]
[354388871,1740468756950,-1025.54,0.0005726,120]
[354388872,1740468756960,-972.52,0.0005726,120]
[354388873,1740468756970,-500.0,0.0005726,120]
[354388874,1740468756979,-1147.6,0.0005726,120]
[354388875,1740468756989,-954.71,0.0005726,120]
[354388876,1740468756999,-508.53,0.0005726,120]
[354388877,1740468757009,-500.0,0.0005726,120]
[354388878,1740468757019,-500.0,0.0005726,120]
[354388879,1740468757029,-1526.64,0.0005726,120]
[354388880,1740468757039,-927.58,0.0005726,120]
[354388881,1740468757049,-500.0,0.0005726,120]
[354388882,1740468757060,-500.0,0.0005726,120]
[354388883,1740468757071,-1242.39,0.0005726,120]
[354388884,1740468757086,-871.61,0.0005726,120]
[354388885,1740468757097,-1600.52,0.0005726,120]
[354388886,1740468757108,-549.43,0.0005726,120]
[354388887,1740468757119,-1142.54,0.0005726,120]
[354388888,1740468757131,-346.66736842,0.0005726,120]
[354388889,1740468757142,-552.98,0.0005726,120]
[354388890,1740468757154,-1401.97,0.0005726,120]
[354388891,1740468757165,-1245.93,0.0005726,120]
[354388892,1740468757175,-182.39167699,0.0005726,120]
[354388893,1740468757185,-1200.36,0.0005726,120]
[354388894,1740468757196,-500.0,0.0005726,30]
[354388895,1740468757206,-500.0,0.0005726,120]
[354388896,1740468757217,-504.05,0.0005726,120]
[354388897,1740468757228,-971.46,0.0005726,120]
[354388898,1740468757238,-500.0,0.0005726,120]
[354388899,1740468757248,-500.0,0.0005726,120]
[354388900,1740468757259,-500.0,0.0005726,120]
[354388901,1740468757270,-500.0,0.0005726,120]
[354388902,1740468757280,-599.74,0.0005726,120]
[354388903,1740468757289,-500.0,0.0005726,120]
[354388904,1740468757299,-515.75,0.0005726,120]
[354388905,1740468757309,-1301.53,0.0005726,120]
[354388906,1740468757320,-500.0,0.0005726,120]
[354388907,1740468757330,-500.0,0.0005726,120]
[354388908,1740468757342,-500.0,0.0005726,120]
[354388909,1740468757352,-1377.93,0.0005726,120]
[354388910,1740468757363,-519.39,0.0005726,120]
[354388911,1740468757374,-623.61,0.0005726,120]
[354388912,1740468757385,-500.0,0.0005726,120]
[354388913,1740468757633,-1303.38,0.0005726,120]
[354388914,1740468757645,-500.0,0.0005726,120]
[354388915,1740468757655,-500.0,0.0005726,120]
[354388916,1740468757666,-500.0,0.0005726,120]
[354388917,1740468757676,-585.47,0.0005726,120]
[354388918,1740468757686,-552.97,0.0005726,120]
[354388919,1740468757696,-1349.4,0.0005726,120]
[354388920,1740468757706,-500.0,0.0005726,120]
[354388921,1740468757715,-741.84,0.0005726,120]
[354388922,1740468757725,-700.58,0.0005726,2]
[354388923,1740468757735,-2351.09,0.0005726,2]
[354388924,1740468757745,-500.0,0.0005726,120]
[354388925,1740468757754,-994.98,0.0005726,30]
[354388926,1740468757763,-500.0,0.0005726,120]
[354388927,1740468757773,-500.0,0.0005726,120]
[354388928,1740468757782,-715.33,0.0005726,120]
[354388929,1740468757792,-1439.89,0.0005726,120]
[354388930,1740468757801,-500.0,0.0005726,120]
[354388931,1740468757810,-943.25,0.0005726,120]
[354388932,1740468757821,-657.52,0.0005726,120]
[354388933,1740468757831,-500.0,0.0005726,120]
[354388934,1740468757843,-523.79,0.0005726,120]
[354388935,1740468757852,-500.0,0.0005726,120]
[354388936,1740468757862,-1664.27,0.0005726,120]
[354388937,1740468757872,-943.64,0.0005726,120]
[354388938,1740468757881,-516.4,0.0005726,120]
[354388939,1740468757891,-712.11,0.0005726,120]
[354388940,1740468757901,-500.0,0.0005726,120]
[354388941,1740468757910,-500.0,0.0005726,120]
[354388942,1740468757920,-500.0,0.0005726,120]
[354388943,1740468757930,-888.35,0.0005726,120]
[354388944,1740468757939,-500.0,0.0005726,120]
[354388945,1740468757949,-522.22,0.0005726,120]
[354388946,1740468757958,-1032.87,0.0005726,120]
[354388947,1740468757969,-500.0,0.0005726,120]
[354388948,1740468757978,-1438.9,0.0005726,120]
[354388949,1740468757987,-532.55148786,0.0005726,120]
[354388950,1740468757997,-570.8,0.0005726,120]
[354388951,1740468758006,-815.66,0.0005726,120]
[354388952,1740468758016,-500.0,0.0005726,120]
[354388953,1740468758026,-500.0,0.0005726,120]
[354388954,1740468758035,-1275.45,0.0005726,120]
[354388955,1740468758045,-3980.64,0.0005726,120]
[354388956,1740468758055,-500.0,0.0005726,120]
[354388957,1740468758065,-500.0,0.0005726,120]
[354388958,1740468758075,-500.0,0.0005726,120]
[354388959,1740468758091,-1206.75,0.0005726,120]
[354388960,1740468758101,-500.0,0.0005726,120]
[354388961,1740468758112,-1130.49,0.0005726,120]
[354388962,1740468758123,-1535.83,0.0005726,120]
[354388963,1740468758135,-1768.01,0.0005726,120]
[354388964,1740468758145,-500.0,0.0005726,120]
[354388965,1740468758159,-664.86,0.0005726,120]
[354388966,1740468758171,-696.61,0.0005726,120]
[354388967,1740468758181,-1200.87,0.0005726,120]
[354388968,1740468758191,-1522.97,0.0005726,120]
[354388969,1740468758201,-500.0,0.0005726,120]
[354388970,1740468758211,-500.0,0.0005726,120]
[354388971,1740468758221,-501.97600003,0.0005726,120]
[354388972,1740468758231,-1393.05,0.0005726,120]
[354388973,1740468758242,-894.01,0.0005726,120]
[354388974,1740468758251,-1886.6,0.0005726,120]
[354388975,1740468758260,-986.38,0.0005726,120]
[354388976,1740468758270,-1184.76,0.0005726,120]
[354388977,1740468758279,-500.0,0.0005726,120]
[354388978,1740468758289,-1319.72,0.0005726,120]
[354388979,1740468758298,-2022.2,0.0005726,120]
[354388980,1740468758308,-1099.29,0.0005726,120]
[354388981,1740468758317,-1444.43,0.0005726,120]
[354388982,1740468758326,-512.51,0.0005726,120]
[354388983,1740468758338,-517.98,0.0005726,120]
[354388984,1740468758347,-1030.18,0.0005726,120]
[354388985,1740468758357,-500.0,0.0005726,120]
[354388986,1740468758367,-971.18,0.0005726,120]
[354388987,1740468758376,-1142.3,0.0005726,120]
[354388988,1740468758386,-1194.04,0.0005726,120]
[354388989,1740468758396,-1748.82,0.0005726,120]
[354388990,1740468758406,-679.54,0.0005726,120]
[354388991,1740468758416,-1309.17,0.0005726,120]
[354388992,1740468758427,-500.0,0.0005726,120]
[354388993,1740468758437,-587.74,0.0005726,120]
[354388994,1740468758447,-778.7,0.0005726,120]
[354388995,1740468758457,-733.26,0.0005726,120]
[354388996,1740468758468,-730.67,0.0005726,120]
[354388997,1740468758478,-598.78,0.0005726,120]
[354388998,1740468758488,-1016.76,0.0005726,120]
[354388999,1740468758497,-343.780273,0.0005726,120]
[354389000,1740468758507,-789.0,0.0005726,120]
[354389001,1740468758516,-500.0,0.0005726,120]
[354389002,1740468758526,-500.0,0.0005726,120]
[354389003,1740468758536,-1145.46,0.0005726,120]
[354389004,1740468758546,-4362.55,0.0005726,120]
[354389005,1740468758556,-631.53,0.0005726,120]
[354389006,1740468758566,-3017.39,0.0005726,120]
[354389007,1740468758576,-500.0,0.0005726,120]
[354389008,1740468758589,-969.91,0.0005726,120]
[354389009,1740468758599,-759.14,0.0005726,120]
[354389010,1740468758609,-500.0,0.0005726,120]
[354389011,1740468758619,-2220.86,0.0005726,120]
[354389012,1740468758629,-318.751745,0.0005726,120]
[354389013,1740468758638,-1553.03,0.0005726,120]
[354389014,1740468758648,-722.9,0.0005726,120]
[354389015,1740468758657,-500.0,0.0005726,120]
[354389016,1740468758667,-856.37,0.0005726,120]
[354389017,1740468758676,-910.26,0.0005726,120]
[354389018,1740468758686,-500.0,0.0005726,120]
[354389019,1740468758696,-887.73,0.0005726,120]
[354389020,1740468758706,-1830.19,0.0005726,120]
[354389021,1740468758715,-1715.31,0.0005726,120]
[354389022,1740468758726,-500.0,0.0005726,120]
[354389023,1740468758736,-500.0,0.0005726,120]
[354389024,1740468758747,-500.0,0.0005726,120]
[354389025,1740468758758,-686.54,0.0005726,120]
[354389026,1740468758768,-500.0,0.0005726,120]
[354389027,1740468758778,-2424.1,0.0005726,120]
[354389028,1740468758788,-500.0,0.0005726,120]
[354389029,1740468758798,-500.0,0.0005726,120]
[354389030,1740468758808,-1521.55,0.0005726,120]
[354389031,1740468758818,-2919.48,0.0005726,120]
[354389032,1740468758828,-823.47,0.0005726,120]
[354389033,1740468758841,-1738.48,0.0005726,120]
[354389034,1740468758850,-915.34,0.0005726,120]
[354389035,1740468758860,-2711.99,0.0005726,120]
[354389036,1740468758870,-500.0,0.0005726,120]
[354389037,1740468758880,-576.99,0.0005726,120]
[354389038,1740468758889,-500.0,0.0005726,120]
[354389039,1740468758899,-2110.84,0.0005726,120]
[354389040,1740468758909,-637.74,0.0005726,120]
[354389041,1740468758919,-2315.41,0.0005726,120]
[354389042,1740468758928,-3875.43,0.0005726,7]
[354389043,1740468758938,-500.0,0.0005726,120]
[354389044,1740468758948,-1035.71,0.0005726,120]
[354389045,1740468758957,-500.0,0.0005726,60]
[354389046,1740468758967,-750.25,0.0005726,120]
[354389047,1740468758977,-500.0,0.0005726,120]
[354389048,1740468758987,-500.0,0.0005726,120]
[354389049,1740468758996,-3264.88,0.0005726,120]
[354389050,1740468759005,-2938.93,0.0005726,120]
[354389051,1740468759015,-1210.86,0.0005726,120]
[354389052,1740468759025,-534.95,0.0005726,120]
[354389053,1740468759035,-703.65,0.0005726,120]
[354389054,1740468759044,-2458.44,0.0005726,120]
[354389055,1740468759053,-1556.62,0.0005726,120]
[354389056,1740468759063,-500.0,0.0005726,120]
[354389057,1740468759073,-2761.69,0.0005726,120]
[354389058,1740468759085,-585.51,0.0005726,120]
[354389059,1740468759096,-2649.21,0.0005726,120]
[354389060,1740468759106,-1981.89,0.0005726,120]
[354389061,1740468759116,-689.83,0.0005726,120]
[354389062,1740468759125,-2553.02,0.0005726,120]
[354389063,1740468759137,-3211.4,0.0005726,120]
[354389064,1740468759146,-1493.71,0.0005726,120]
[354389065,1740468759157,-1352.07,0.0005726,120]
[354389066,1740468759166,-2909.1,0.0005726,120]
[354389067,1740468759175,-1667.75,0.0005726,120]
[354389068,1740468759185,-4349.64,0.0005726,120]
[354389069,1740468759195,-1519.71,0.0005726,120]
[354389070,1740468759205,-752.34,0.0005726,120]
[354389071,1740468759215,-864.91,0.0005726,120]
[354389072,1740468759225,-1290.66,0.0005726,120]
[354389073,1740468759235,-500.0,0.0005726,120]
[354389074,1740468759244,-910.81,0.0005726,5]
[354389075,1740468759254,-2901.27,0.0005726,120]
[354389076,1740468759264,-1857.67,0.0005726,120]
[354389077,1740468759274,-500.0,0.0005726,120]
[354389078,1740468759284,-2986.93,0.0005726,120]
[354389079,1740468759294,-2864.49,0.0005726,120]
[354389080,1740468759304,-500.0,0.0005726,120]
[354389081,1740468759313,-2305.88,0.0005726,120]
[354389082,1740468759322,-2121.17,0.0005726,120]
[354389083,1740468759332,-500.0,0.0005726,120]
[354389084,1740468759346,-2477.45,0.0005726,120]
[354389085,1740468759356,-1752.42,0.0005726,120]
[354389086,1740468759366,-538.64,0.0005726,120]
[354389087,1740468759376,-1452.1,0.0005726,120]
[354389088,1740468759386,-1822.96,0.0005726,120]
[354389089,1740468759396,-1851.24,0.0005726,120]
[354389090,1740468759406,-500.0,0.0005726,120]
[354389091,1740468759417,-607.87,0.0005726,120]
[354389092,1740468759426,-2265.65,0.0005726,120]
[354389093,1740468759436,-3192.11,0.0005726,120]
[354389094,1740468759445,-3707.86,0.0005726,120]
[354389095,1740468759455,-1530.35,0.0005726,120]
[354389096,1740468759465,-1400.72,0.0005726,120]
[354389097,1740468759474,-813.46,0.0005726,120]
[354389098,1740468759484,-1028.29,0.0005726,120]
[354389099,1740468759493,-1470.7,0.0005726,120]
[354389100,1740468759503,-640.5,0.0005726,120]
[354389101,1740468759512,-466.15586828,0.0005726,120]
[354389102,1740468759521,-2337.12,0.0005726,120]
[354389103,1740468759530,-3975.46,0.0005726,120]
[354389104,1740468759540,-3333.6,0.0005726,120]
[354389105,1740468759549,-5873.49,0.0005726,120]
[354389106,1740468759559,-1036.75,0.0005726,120]